[Event "Late-Titled-Tuesday-Blitz-February-20-2024"]
[Site "Chess.com"]
[Date "2024.02.20"]
[Round "10"]
[White "WilsonPalencia21"]
[Black "MarcoRiehle"]
[Result "1-0"]
[WhiteElo "2560"]
[BlackElo "2830"]
[TimeControl "180+1"]
[EndTime "15:55:42 PST"]
[Termination "WilsonPalencia21 won by resignation"]

1. d4 {[%clk 0:03:00.9]} 1... d5 {[%clk 0:02:14.4]} 2. c4 {[%clk 0:03:00.3]}
2... e6 {[%clk 0:02:15]} 3. Nf3 {[%clk 0:03:00.4]} 3... Nf6 {[%clk 0:02:13.1]}
4. Nc3 {[%clk 0:03:00.6]} 4... dxc4 {[%clk 0:02:13.3]} 5. e3 {[%clk 0:03:00.1]}
5... a6 {[%clk 0:02:11.6]} 6. Bxc4 {[%clk 0:03:00.1]} 6... b5 {[%clk 0:02:12.1]}
7. Be2 {[%clk 0:03:00.1]} 7... Bb7 {[%clk 0:02:12.3]} 8. O-O {[%clk 0:02:57.2]}
8... c5 {[%clk 0:02:11.7]} 9. dxc5 {[%clk 0:02:57.2]} 9... Bxc5 {[%clk
0:02:08.3]} 10. Qxd8+ {[%clk 0:02:56.5]} 10... Kxd8 {[%clk 0:02:09.2]} 11. Ne5
{[%clk 0:02:56.9]} 11... Ke7 {[%clk 0:02:07.4]} 12. a3 {[%clk 0:02:54.1]} 12...
Nbd7 {[%clk 0:02:04.1]} 13. Nxd7 {[%clk 0:02:48.7]} 13... Nxd7 {[%clk
0:02:00.5]} 14. b4 {[%clk 0:02:48.6]} 14... Bd6 {[%clk 0:01:53.9]} 15. Bb2
{[%clk 0:02:47.3]} 15... Rac8 {[%clk 0:01:51.1]} 16. Rac1 {[%clk 0:02:35]} 16...
Rc7 {[%clk 0:01:48.5]} 17. Nb1 {[%clk 0:02:33.9]} 17... f6 {[%clk 0:01:46.5]}
18. Rxc7 {[%clk 0:02:32.8]} 18... Bxc7 {[%clk 0:01:47.4]} 19. Rc1 {[%clk
0:02:32.7]} 19... Rc8 {[%clk 0:01:45.9]} 20. g3 {[%clk 0:02:29.1]} 20... Be5
{[%clk 0:01:43.8]} 21. Rxc8 {[%clk 0:02:27]} 21... Bxc8 {[%clk 0:01:41.9]} 22.
Bxe5 {[%clk 0:02:24.6]} 22... Nxe5 {[%clk 0:01:42.8]} 23. f4 {[%clk 0:02:23.4]}
23... Nd7 {[%clk 0:01:41.3]} 24. Nc3 {[%clk 0:02:19.1]} 24... Bb7 {[%clk
0:01:40.1]} 25. Bd3 {[%clk 0:02:18.9]} 25... g6 {[%clk 0:01:37]} 26. Kf2 {[%clk
0:02:18.4]} 26... e5 {[%clk 0:01:34.8]} 27. Bc2 {[%clk 0:02:11.1]} 27... Nb6
{[%clk 0:01:31.5]} 28. Bb3 {[%clk 0:02:11]} 28... Kd6 {[%clk 0:01:26.5]} 29. e4
{[%clk 0:02:03.7]} 29... g5 {[%clk 0:01:23.4]} 30. fxg5 {[%clk 0:02:01.3]} 30...
fxg5 {[%clk 0:01:22.4]} 31. Ke3 {[%clk 0:02:00.4]} 31... h6 {[%clk 0:01:20.5]}
32. Bg8 {[%clk 0:01:54.3]} 32... Bc8 {[%clk 0:01:20]} 33. Bd5 {[%clk 0:01:33.5]}
33... Be6 {[%clk 0:01:13]} 34. Bb7 {[%clk 0:01:33.2]} 34... Nc4+ {[%clk
0:01:11]} 35. Kd3 {[%clk 0:01:23.3]} 35... Nxa3 {[%clk 0:01:11.2]} 36. Bxa6
{[%clk 0:01:19.8]} 36... Kc6 {[%clk 0:01:07.8]} 37. Nd5 {[%clk 0:01:12.8]} 37...
Bxd5 {[%clk 0:01:04.5]} 38. exd5+ {[%clk 0:01:12.8]} 38... Kxd5 {[%clk
0:01:05.4]} 39. Bb7+ {[%clk 0:01:13]} 39... Ke6 {[%clk 0:00:59.5]} 40. Bc6
{[%clk 0:00:59.6]} 40... Kd6 {[%clk 0:00:57.7]} 41. Bb7 {[%clk 0:00:58.2]} 41...
Nc4 {[%clk 0:00:56.4]} 42. Ke4 {[%clk 0:00:52]} 42... Nd2+ {[%clk 0:00:53.5]}
43. Kf5 {[%clk 0:00:48.7]} 43... Nf1 {[%clk 0:00:53.5]} 44. Kg6 {[%clk
0:00:43.7]} 44... Nxh2 {[%clk 0:00:51.6]} 45. Kxh6 {[%clk 0:00:44.1]} 45... g4
{[%clk 0:00:50.5]} 46. Kg5 {[%clk 0:00:44.2]} 46... Ke6 {[%clk 0:00:50.5]} 47.
Bc6 {[%clk 0:00:40.7]} 47... Nf3+ {[%clk 0:00:41.5]} 48. Kxg4 {[%clk 0:00:39.1]}
48... Nd4 {[%clk 0:00:42.4]} 49. Be4 {[%clk 0:00:37.2]} 49... Kd6 {[%clk
0:00:39.3]} 50. Kg5 {[%clk 0:00:34.4]} 50... Ne6+ {[%clk 0:00:37.1]} 51. Kf6
{[%clk 0:00:29.8]} 51... Nc7 {[%clk 0:00:36.8]} 52. g4 {[%clk 0:00:27.3]} 52...
Na6 {[%clk 0:00:37.3]} 53. g5 {[%clk 0:00:27.1]} 53... Nxb4 {[%clk 0:00:37.9]}
54. g6 {[%clk 0:00:27.2]} 54... Na6 {[%clk 0:00:38.3]} 55. g7 {[%clk 0:00:27.3]}
55... Nc5 {[%clk 0:00:38.1]} 56. Bf5 {[%clk 0:00:21.4]} 56... b4 {[%clk
0:00:38.2]} 57. g8=Q {[%clk 0:00:21.2]} 57... b3 {[%clk 0:00:38.7]} 58. Qc4
{[%clk 0:00:20.5]} 58... b2 {[%clk 0:00:36.6]} 59. Qb4 {[%clk 0:00:18.1]} 59...
e4 {[%clk 0:00:36.9]} 60. Bxe4 {[%clk 0:00:17.1]} 60... b1=Q {[%clk 0:00:36.7]}
61. Bxb1 {[%clk 0:00:17]} 61... Kd5 {[%clk 0:00:37.6]} 62. Ba2+ {[%clk
0:00:16.6]} 62... Kc6 {[%clk 0:00:38.2]} 63. Qc4 {[%clk 0:00:15.1]} 63... Kb6
{[%clk 0:00:37.4]} 64. Ke5 {[%clk 0:00:14.6]} 64... Nb7 {[%clk 0:00:37.6]} 65.
Kd5 {[%clk 0:00:13.7]} 65... Ka7 {[%clk 0:00:35.8]} 66. Qa4+ {[%clk 0:00:13.3]}
66... Kb6 {[%clk 0:00:35.8]} 67. Bc4 {[%clk 0:00:11.6]} 67... Kc7 {[%clk
0:00:34.9]} 68. Qc6+ {[%clk 0:00:10.8]} 68... Kb8 {[%clk 0:00:35.3]} 69. Ba6
{[%clk 0:00:09.4]} 69... Nd8 {[%clk 0:00:35.5]} 70. Qc8+ {[%clk 0:00:09]} 70...
Ka7 {[%clk 0:00:35.9]} 71. Qxd8 {[%clk 0:00:08.9]} 1-0

[Event "Late-Titled-Tuesday-Blitz-February-20-2024"]
[Site "Chess.com"]
[Date "2024.02.20"]
[Round "10"]
[White "Herman-NY"]
[Black "karinachess1"]
[Result "0-1"]
[WhiteElo "2511"]
[BlackElo "2654"]
[TimeControl "180+1"]
[EndTime "15:55:42 PST"]
[Termination "karinachess1 won by checkmate"]

1. e4 {[%clk 0:03:00.9]} 1... e5 {[%clk 0:03:00.3]} 2. Nf3 {[%clk 0:03:01.2]}
2... Nc6 {[%clk 0:03:00.8]} 3. Bb5 {[%clk 0:03:01.7]} 3... Nf6 {[%clk
0:03:01.2]} 4. d3 {[%clk 0:03:01.7]} 4... d6 {[%clk 0:03:00.7]} 5. c3 {[%clk
0:03:00.3]} 5... Bd7 {[%clk 0:03:00.3]} 6. Nbd2 {[%clk 0:03:00.1]} 6... g6
{[%clk 0:03:00.4]} 7. Nf1 {[%clk 0:03:00]} 7... Bg7 {[%clk 0:03:00.9]} 8. Ne3
{[%clk 0:03:00.5]} 8... O-O {[%clk 0:03:01.1]} 9. a4 {[%clk 0:02:50.7]} 9... Kh8
{[%clk 0:02:51.4]} 10. a5 {[%clk 0:02:49.2]} 10... a6 {[%clk 0:02:51.2]} 11. Bc4
{[%clk 0:02:48.5]} 11... Qe8 {[%clk 0:02:49.6]} 12. h4 {[%clk 0:02:40.3]} 12...
h5 {[%clk 0:02:23.8]} 13. Ng5 {[%clk 0:02:38.1]} 13... Ne7 {[%clk 0:02:16]} 14.
Bd2 {[%clk 0:01:31]} 14... c6 {[%clk 0:02:11.6]} 15. Ba2 {[%clk 0:01:15.2]}
15... d5 {[%clk 0:02:07.5]} 16. Qf3 {[%clk 0:00:53.6]} 16... Ng4 {[%clk
0:01:22.7]} 17. exd5 {[%clk 0:00:51.5]} 17... Nxe3 {[%clk 0:01:20.6]} 18. fxe3
{[%clk 0:00:48.5]} 18... Bg4 {[%clk 0:01:16.4]} 19. Qf2 {[%clk 0:00:42]} 19...
cxd5 {[%clk 0:01:13.6]} 20. e4 {[%clk 0:00:37.9]} 20... f6 {[%clk 0:01:06.3]}
21. Nf3 {[%clk 0:00:33]} 21... dxe4 {[%clk 0:01:06.5]} 22. dxe4 {[%clk
0:00:33.1]} 22... Qc6 {[%clk 0:01:06.8]} 23. Qe2 {[%clk 0:00:27.2]} 23... Rad8
{[%clk 0:01:04.6]} 24. O-O {[%clk 0:00:26.1]} 24... Rd7 {[%clk 0:00:54.6]} 25.
Kh1 {[%clk 0:00:15.2]} 25... Rfd8 {[%clk 0:00:52.2]} 26. Be1 {[%clk 0:00:12.1]}
26... Bh6 {[%clk 0:00:44.4]} 27. Bb3 {[%clk 0:00:05.7]} 27... Qc7 {[%clk
0:00:37.2]} 28. Ba4 {[%clk 0:00:05.3]} 28... Nc6 {[%clk 0:00:37.5]} 29. b4
{[%clk 0:00:04.7]} 29... Kg7 {[%clk 0:00:34.6]} 30. Qf2 {[%clk 0:00:04.8]} 30...
Rd6 {[%clk 0:00:29.7]} 31. Nh2 {[%clk 0:00:05]} 31... Bc8 {[%clk 0:00:24.1]} 32.
Bb3 {[%clk 0:00:05.1]} 32... Qe7 {[%clk 0:00:21.7]} 33. Qg3 {[%clk 0:00:05.1]}
33... Rd3 {[%clk 0:00:20.2]} 34. Rf3 {[%clk 0:00:04.5]} 34... Bf4 {[%clk
0:00:18.1]} 35. Qf2 {[%clk 0:00:04.7]} 35... Rxf3 {[%clk 0:00:17.2]} 36. Nxf3
{[%clk 0:00:05.6]} 36... Bg4 {[%clk 0:00:16.3]} 37. Bd5 {[%clk 0:00:05.7]} 37...
Qc7 {[%clk 0:00:13.9]} 38. Nh2 {[%clk 0:00:05.9]} 38... Bc8 {[%clk 0:00:12.8]}
39. Bd2 {[%clk 0:00:05.3]} 39... Ne7 {[%clk 0:00:11.6]} 40. Bxf4 {[%clk
0:00:05]} 40... exf4 {[%clk 0:00:12.5]} 41. c4 {[%clk 0:00:05.5]} 41... Nxd5
{[%clk 0:00:10.9]} 42. cxd5 {[%clk 0:00:06.4]} 42... Qe5 {[%clk 0:00:11.2]} 43.
Re1 {[%clk 0:00:06]} 43... g5 {[%clk 0:00:10.5]} 44. Nf3 {[%clk 0:00:06.2]}
44... Qe7 {[%clk 0:00:09.2]} 45. hxg5 {[%clk 0:00:06]} 45... fxg5 {[%clk
0:00:10.1]} 46. e5 {[%clk 0:00:06.7]} 46... g4 {[%clk 0:00:08.5]} 47. Nd4 {[%clk
0:00:06.2]} 47... Rf8 {[%clk 0:00:08]} 48. d6 {[%clk 0:00:05.7]} 48... Qg5
{[%clk 0:00:08.1]} 49. e6 {[%clk 0:00:05.5]} 49... g3 {[%clk 0:00:08.1]} 50. Qf3
{[%clk 0:00:04.8]} 50... Qh4+ {[%clk 0:00:08.4]} 51. Kg1 {[%clk 0:00:05.3]}
51... Qh2+ {[%clk 0:00:08.1]} 52. Kf1 {[%clk 0:00:05.7]} 52... Rf6 {[%clk
0:00:03.7]} 53. d7 {[%clk 0:00:05.7]} 53... Bxd7 {[%clk 0:00:03.2]} 54. exd7
{[%clk 0:00:06.6]} 54... Rd6 {[%clk 0:00:03.5]} 55. Re7+ {[%clk 0:00:06.4]}
55... Kf6 {[%clk 0:00:03.3]} 56. Re6+ {[%clk 0:00:06]} 56... Rxe6 {[%clk
0:00:03.6]} 57. Nf5 {[%clk 0:00:06.5]} 57... Qh1# {[%clk 0:00:03.6]} 0-1

[Event "Late-Titled-Tuesday-Blitz-February-20-2024"]
[Site "Chess.com"]
[Date "2024.02.20"]
[Round "10"]
[White "ImportedItalianMaple"]
[Black "carloseduar100"]
[Result "0-1"]
[WhiteElo "2489"]
[BlackElo "2388"]
[TimeControl "180+1"]
[EndTime "15:55:48 PST"]
[Termination "carloseduar100 won on time"]

1. Nf3 {[%clk 0:03:00.9]} 1... Nf6 {[%clk 0:02:59.8]} 2. g3 {[%clk 0:03:01.3]}
2... g6 {[%clk 0:03:00.7]} 3. Bg2 {[%clk 0:03:01.5]} 3... Bg7 {[%clk 0:03:01.6]}
4. O-O {[%clk 0:03:02]} 4... O-O {[%clk 0:03:02.5]} 5. d4 {[%clk 0:03:02.7]}
5... d6 {[%clk 0:03:02.8]} 6. c4 {[%clk 0:03:02.9]} 6... Nbd7 {[%clk 0:03:02.2]}
7. Nc3 {[%clk 0:03:03.1]} 7... e5 {[%clk 0:03:02.9]} 8. e4 {[%clk 0:03:03.2]}
8... a6 {[%clk 0:03:02.5]} 9. h3 {[%clk 0:02:52.7]} 9... c6 {[%clk 0:02:59.8]}
10. d5 {[%clk 0:02:51.1]} 10... cxd5 {[%clk 0:02:59.4]} 11. cxd5 {[%clk
0:02:44.5]} 11... b5 {[%clk 0:02:59.5]} 12. b4 {[%clk 0:02:38.6]} 12... Nb6
{[%clk 0:02:56.4]} 13. Nd2 {[%clk 0:02:28.5]} 13... Bd7 {[%clk 0:02:56.5]} 14.
Qb3 {[%clk 0:02:15.3]} 14... Qc8 {[%clk 0:02:53.4]} 15. Kh2 {[%clk 0:02:07.3]}
15... Qb7 {[%clk 0:02:49.2]} 16. Bb2 {[%clk 0:02:04]} 16... Rac8 {[%clk
0:02:49.1]} 17. Rfc1 {[%clk 0:02:03.6]} 17... Nc4 {[%clk 0:02:49.2]} 18. Nxc4
{[%clk 0:02:03.6]} 18... Rxc4 {[%clk 0:02:50.1]} 19. Bf1 {[%clk 0:01:50.2]}
19... Rfc8 {[%clk 0:02:24]} 20. Bxc4 {[%clk 0:01:48.2]} 20... Rxc4 {[%clk
0:02:24.9]} 21. Re1 {[%clk 0:01:41.8]} 21... Qc8 {[%clk 0:02:23.5]} 22. g4
{[%clk 0:01:28.4]} 22... Bh6 {[%clk 0:02:09.8]} 23. f3 {[%clk 0:01:22.9]} 23...
Bd2 {[%clk 0:02:04.5]} 24. Rec1 {[%clk 0:01:19.8]} 24... Bxc1 {[%clk 0:02:03.8]}
25. Rxc1 {[%clk 0:01:20.5]} 25... h5 {[%clk 0:02:03]} 26. Ne2 {[%clk 0:01:13]}
26... Rxc1 {[%clk 0:01:59.2]} 27. Bxc1 {[%clk 0:01:13.6]} 27... hxg4 {[%clk
0:01:59.7]} 28. hxg4 {[%clk 0:01:13.4]} 28... Bxg4 {[%clk 0:01:51.2]} 29. fxg4
{[%clk 0:01:12.2]} 29... Qxg4 {[%clk 0:01:52.1]} 30. Ng3 {[%clk 0:00:58.9]}
30... Qh4+ {[%clk 0:01:38]} 31. Kg2 {[%clk 0:00:58.1]} 31... Nxe4 {[%clk
0:01:38.6]} 32. Nxe4 {[%clk 0:00:55.1]} 32... Qxe4+ {[%clk 0:01:39.5]} 33. Kf2
{[%clk 0:00:53.6]} 33... f5 {[%clk 0:01:33.5]} 34. Bg5 {[%clk 0:00:29.8]} 34...
Qd4+ {[%clk 0:01:23.1]} 35. Be3 {[%clk 0:00:28.5]} 35... Qh4+ {[%clk 0:01:23.2]}
36. Ke2 {[%clk 0:00:28.2]} 36... f4 {[%clk 0:01:21.2]} 37. Bb6 {[%clk
0:00:28.4]} 37... Qh2+ {[%clk 0:01:14.6]} 38. Kd1 {[%clk 0:00:26.2]} 38... g5
{[%clk 0:01:11.6]} 39. Qd3 {[%clk 0:00:23.7]} 39... Qh1+ {[%clk 0:01:03.1]} 40.
Kc2 {[%clk 0:00:23.4]} 40... e4 {[%clk 0:01:03.3]} 41. Qc3 {[%clk 0:00:20.7]}
41... Qg2+ {[%clk 0:00:59.6]} 42. Kb1 {[%clk 0:00:18.6]} 42... Qf1+ {[%clk
0:00:57.7]} 43. Kb2 {[%clk 0:00:18.6]} 43... Qe2+ {[%clk 0:00:55.9]} 44. Kb3
{[%clk 0:00:17.7]} 44... Qd1+ {[%clk 0:00:54.3]} 45. Ka3 {[%clk 0:00:16.6]}
45... Qxd5 {[%clk 0:00:52.6]} 46. Qc8+ {[%clk 0:00:15.7]} 46... Kf7 {[%clk
0:00:52.6]} 47. Qd7+ {[%clk 0:00:15.2]} 47... Kg6 {[%clk 0:00:52.7]} 48. Qe8+
{[%clk 0:00:15.2]} 48... Kh7 {[%clk 0:00:40]} 49. Qe7+ {[%clk 0:00:13.3]} 49...
Kh6 {[%clk 0:00:39.3]} 50. Qf6+ {[%clk 0:00:10.1]} 50... Kh5 {[%clk 0:00:36.7]}
51. Bd8 {[%clk 0:00:09.4]} 51... e3 {[%clk 0:00:32.2]} 52. Qh8+ {[%clk
0:00:07.4]} 52... Kg4 {[%clk 0:00:32.3]} 53. Qh2 {[%clk 0:00:04.7]} 53... Qd3+
{[%clk 0:00:26.7]} 54. Kb2 {[%clk 0:00:04.9]} 54... e2 {[%clk 0:00:17.7]} 55.
Qg2+ {[%clk 0:00:02.8]} 55... Kf5 {[%clk 0:00:17.2]} 56. Qxg5+ {[%clk
0:00:03.1]} 56... Ke4 {[%clk 0:00:17.3]} 57. Qg6+ {[%clk 0:00:02.2]} 57... Ke3
{[%clk 0:00:17.2]} 58. Qe6+ {[%clk 0:00:01.9]} 58... Kd2 {[%clk 0:00:16.5]} 0-1

[Event "Late-Titled-Tuesday-Blitz-February-20-2024"]
[Site "Chess.com"]
[Date "2024.02.20"]
[Round "10"]
[White "Mesa_1"]
[Black "s-dshubin"]
[Result "0-1"]
[WhiteElo "2516"]
[BlackElo "2369"]
[TimeControl "180+1"]
[EndTime "15:55:52 PST"]
[Termination "s-dshubin won by resignation"]

1. e4 {[%clk 0:03:00.9]} 1... e6 {[%clk 0:03:00.4]} 2. d4 {[%clk 0:03:00.6]}
2... d5 {[%clk 0:03:01.3]} 3. Nd2 {[%clk 0:02:59.6]} 3... Be7 {[%clk 0:02:58.1]}
4. Ngf3 {[%clk 0:02:59.3]} 4... c5 {[%clk 0:02:54.2]} 5. dxc5 {[%clk 0:02:53.3]}
5... Nf6 {[%clk 0:02:53.6]} 6. exd5 {[%clk 0:02:34.8]} 6... Nxd5 {[%clk
0:02:48.6]} 7. Nb3 {[%clk 0:02:32.1]} 7... Bxc5 {[%clk 0:02:35.8]} 8. Nxc5
{[%clk 0:02:33]} 8... Qa5+ {[%clk 0:02:34.8]} 9. Bd2 {[%clk 0:02:33.9]} 9...
Qxc5 {[%clk 0:02:34.7]} 10. c4 {[%clk 0:02:34.8]} 10... Nf6 {[%clk 0:02:31.1]}
11. Qa4+ {[%clk 0:02:33.6]} 11... Bd7 {[%clk 0:02:30]} 12. Qb4 {[%clk 0:02:31]}
12... Qxb4 {[%clk 0:02:28.9]} 13. Bxb4 {[%clk 0:02:31.9]} 13... Nc6 {[%clk
0:02:28.1]} 14. Bc3 {[%clk 0:02:32.6]} 14... O-O-O {[%clk 0:02:21.9]} 15. O-O-O
{[%clk 0:02:32.7]} 15... Ne4 {[%clk 0:02:19.2]} 16. Be1 {[%clk 0:02:33.4]} 16...
e5 {[%clk 0:02:14.1]} 17. Bd3 {[%clk 0:02:30.4]} 17... Nc5 {[%clk 0:02:13.4]}
18. Bc2 {[%clk 0:02:30.2]} 18... Bg4 {[%clk 0:02:10.2]} 19. Rxd8+ {[%clk
0:02:26.8]} 19... Rxd8 {[%clk 0:02:11.1]} 20. Ng5 {[%clk 0:02:22.3]} 20... f6
{[%clk 0:02:02.6]} 21. h3 {[%clk 0:02:08.3]} 21... Be2 {[%clk 0:01:51.7]} 22.
Nxh7 {[%clk 0:02:03.3]} 22... Nd4 {[%clk 0:01:47.9]} 23. Bb4 {[%clk 0:01:58.3]}
23... Nd3+ {[%clk 0:01:39.1]} 24. Bxd3 {[%clk 0:01:52.6]} 24... Bxd3 {[%clk
0:01:40]} 25. Nf8 {[%clk 0:01:52]} 25... Bxc4 {[%clk 0:01:18.6]} 26. b3 {[%clk
0:01:51.5]} 26... Bf7 {[%clk 0:01:15.5]} 27. h4 {[%clk 0:01:42.6]} 27... a5
{[%clk 0:01:09.2]} 28. Ba3 {[%clk 0:01:38.1]} 28... Nb5 {[%clk 0:01:09.3]} 29.
Be7 {[%clk 0:01:36.7]} 29... Re8 {[%clk 0:01:07.9]} 30. Bc5 {[%clk 0:01:37.4]}
30... b6 {[%clk 0:01:04.3]} 31. Bxb6 {[%clk 0:01:37.7]} 31... Rxf8 {[%clk
0:00:59.2]} 32. Bxa5 {[%clk 0:01:38.3]} 32... Kb7 {[%clk 0:00:57.8]} 33. h5
{[%clk 0:01:38.1]} 33... Rh8 {[%clk 0:00:56.8]} 34. g4 {[%clk 0:01:38.7]} 34...
Nd4 {[%clk 0:00:53]} 35. Kb2 {[%clk 0:01:39.4]} 35... Ne2 {[%clk 0:00:47.7]} 36.
Bd2 {[%clk 0:01:33.5]} 36... Be6 {[%clk 0:00:45.8]} 37. f3 {[%clk 0:01:32]}
37... Nd4 {[%clk 0:00:43.5]} 38. Rh3 {[%clk 0:01:30.2]} 38... Bd5 {[%clk
0:00:42.3]} 39. f4 {[%clk 0:01:27.4]} 39... e4 {[%clk 0:00:42.6]} 40. g5 {[%clk
0:01:25.8]} 40... Nf3 {[%clk 0:00:40.3]} 41. Be3 {[%clk 0:01:22.3]} 41... Be6
{[%clk 0:00:38.6]} 42. Rh1 {[%clk 0:01:21.2]} 42... Bg4 {[%clk 0:00:35.7]} 43.
h6 {[%clk 0:01:20.8]} 43... gxh6 {[%clk 0:00:34.4]} 44. gxf6 {[%clk 0:01:20.2]}
44... h5 {[%clk 0:00:28.2]} 45. Bc5 {[%clk 0:01:20.8]} 45... Be6 {[%clk
0:00:24.9]} 46. f5 {[%clk 0:01:21.5]} 46... Bf7 {[%clk 0:00:21.9]} 47. Rd1
{[%clk 0:01:22.2]} 47... Kc6 {[%clk 0:00:20.4]} 48. Ba3 {[%clk 0:01:22.8]} 48...
h4 {[%clk 0:00:20.2]} 49. Rd6+ {[%clk 0:01:23.5]} 49... Kc7 {[%clk 0:00:20.4]}
50. Ra6 {[%clk 0:01:24.1]} 50... Rb8 {[%clk 0:00:18]} 51. Ra7+ {[%clk
0:00:50.9]} 51... Rb7 {[%clk 0:00:18]} 52. Bd6+ {[%clk 0:00:51.7]} 52... Kc6
{[%clk 0:00:16.6]} 53. Ra6+ {[%clk 0:00:52.3]} 53... Rb6 {[%clk 0:00:14.3]} 54.
Ra7 {[%clk 0:00:52.8]} 54... Rb7 {[%clk 0:00:10.3]} 55. Ra6+ {[%clk 0:00:51.9]}
55... Kd7 {[%clk 0:00:10.9]} 56. Bf4 {[%clk 0:00:47]} 56... h3 {[%clk
0:00:11.3]} 57. Rd6+ {[%clk 0:00:47.2]} 57... Ke8 {[%clk 0:00:11.9]} 58. Rd1
{[%clk 0:00:40.8]} 58... Rd7 {[%clk 0:00:10.7]} 59. Rc1 {[%clk 0:00:39.8]} 59...
h2 {[%clk 0:00:10.1]} 60. Rh1 {[%clk 0:00:33.6]} 60... Rd5 {[%clk 0:00:07.3]}
61. Bxh2 {[%clk 0:00:26]} 61... Rd2+ {[%clk 0:00:07]} 62. Kc3 {[%clk 0:00:26.5]}
62... Rxh2 {[%clk 0:00:07.9]} 63. Rd1 {[%clk 0:00:25.9]} 63... e3 {[%clk
0:00:07]} 64. a4 {[%clk 0:00:26.2]} 64... e2 {[%clk 0:00:07.2]} 65. Re1 {[%clk
0:00:24.4]} 65... Nxe1 {[%clk 0:00:06.7]} 0-1

[Event "Late-Titled-Tuesday-Blitz-February-20-2024"]
[Site "Chess.com"]
[Date "2024.02.20"]
[Round "10"]
[White "RantomOpening"]
[Black "emeli_chess"]
[Result "1-0"]
[WhiteElo "2584"]
[BlackElo "2424"]
[TimeControl "180+1"]
[EndTime "15:55:54 PST"]
[Termination "RantomOpening won by resignation"]

1. c4 {[%clk 0:03:00]} 1... e6 {[%clk 0:02:57.8]} 2. Nf3 {[%clk 0:03:00.2]} 2...
d5 {[%clk 0:02:57.9]} 3. e3 {[%clk 0:03:00.7]} 3... c5 {[%clk 0:02:55.9]} 4.
cxd5 {[%clk 0:02:58.7]} 4... exd5 {[%clk 0:02:55.6]} 5. Nc3 {[%clk 0:02:59.6]}
5... Nf6 {[%clk 0:02:51.9]} 6. Bb5+ {[%clk 0:02:59.7]} 6... Bd7 {[%clk
0:02:48.3]} 7. Bxd7+ {[%clk 0:02:59.9]} 7... Nbxd7 {[%clk 0:02:45.6]} 8. d3
{[%clk 0:03:00.5]} 8... Bd6 {[%clk 0:02:42.3]} 9. e4 {[%clk 0:02:58.3]} 9... d4
{[%clk 0:02:24.6]} 10. Ne2 {[%clk 0:02:58]} 10... O-O {[%clk 0:02:22.8]} 11. Ng3
{[%clk 0:02:58.3]} 11... Re8 {[%clk 0:02:11.4]} 12. a4 {[%clk 0:02:54]} 12... c4
{[%clk 0:01:56]} 13. O-O {[%clk 0:02:51.7]} 13... Nc5 {[%clk 0:01:47]} 14. dxc4
{[%clk 0:02:46.9]} 14... d3 {[%clk 0:01:41.4]} 15. b4 {[%clk 0:02:05.6]} 15...
Ncxe4 {[%clk 0:01:35]} 16. Nxe4 {[%clk 0:02:06.2]} 16... Nxe4 {[%clk 0:01:33.3]}
17. c5 {[%clk 0:01:56.8]} 17... Bc7 {[%clk 0:01:21.3]} 18. Be3 {[%clk
0:01:55.2]} 18... Qd5 {[%clk 0:01:12]} 19. Bd4 {[%clk 0:01:51.5]} 19... Ng5
{[%clk 0:00:59.4]} 20. Be3 {[%clk 0:01:44.5]} 20... Rxe3 {[%clk 0:00:39.2]} 21.
fxe3 {[%clk 0:01:41.4]} 21... Ne4 {[%clk 0:00:39.1]} 22. Ra3 {[%clk 0:01:31]}
22... Rd8 {[%clk 0:00:36.5]} 23. Qb3 {[%clk 0:01:22]} 23... a5 {[%clk
0:00:27.6]} 24. Qxd5 {[%clk 0:01:18.9]} 24... Rxd5 {[%clk 0:00:27.2]} 25. Rd1
{[%clk 0:01:17.5]} 25... d2 {[%clk 0:00:19.9]} 26. b5 {[%clk 0:00:39.9]} 26...
Rxc5 {[%clk 0:00:19.4]} 27. Rd3 {[%clk 0:00:29.1]} 27... Rc1 {[%clk 0:00:12.4]}
28. Rxd2 {[%clk 0:00:26.9]} 28... Rxd1+ {[%clk 0:00:08.4]} 29. Rxd1 {[%clk
0:00:27.1]} 29... Kf8 {[%clk 0:00:08.1]} 30. Nd4 {[%clk 0:00:23.1]} 30... Nc5
{[%clk 0:00:06.3]} 31. Rc1 {[%clk 0:00:23.2]} 31... b6 {[%clk 0:00:05.8]} 32.
Nb3 {[%clk 0:00:18.3]} 32... Bd6 {[%clk 0:00:05.2]} 33. Nxc5 {[%clk 0:00:17.6]}
33... Bxc5 {[%clk 0:00:05.6]} 34. Kf2 {[%clk 0:00:18.2]} 34... Ke7 {[%clk
0:00:05.8]} 35. Ke2 {[%clk 0:00:17.8]} 35... Kd6 {[%clk 0:00:05.9]} 36. Kd3
{[%clk 0:00:18.3]} 36... Kd5 {[%clk 0:00:06.4]} 37. e4+ {[%clk 0:00:17.9]} 37...
Ke5 {[%clk 0:00:06]} 38. Rxc5+ {[%clk 0:00:15.3]} 38... bxc5 {[%clk 0:00:06]}
39. Kc4 {[%clk 0:00:16.2]} 39... Kd6 {[%clk 0:00:06.2]} 40. b6 {[%clk
0:00:16.6]} 40... Kc6 {[%clk 0:00:06.4]} 41. b7 {[%clk 0:00:17.1]} 41... Kxb7
{[%clk 0:00:06.8]} 42. Kxc5 {[%clk 0:00:18]} 42... Ka6 {[%clk 0:00:04.3]} 43.
Kc6 {[%clk 0:00:18.4]} 43... f6 {[%clk 0:00:04.6]} 44. g4 {[%clk 0:00:16.8]}
44... g5 {[%clk 0:00:03.1]} 45. h3 {[%clk 0:00:16.7]} 45... h6 {[%clk
0:00:02.2]} 46. Kc5 {[%clk 0:00:16.8]} 46... Ka7 {[%clk 0:00:01.7]} 47. Kb5
{[%clk 0:00:17.3]} 47... Kb7 {[%clk 0:00:01.8]} 48. Kxa5 {[%clk 0:00:17.8]}
48... Kc6 {[%clk 0:00:01.6]} 49. Kb4 {[%clk 0:00:18.3]} 49... Kb6 {[%clk
0:00:01.8]} 50. a5+ {[%clk 0:00:17.1]} 50... Ka6 {[%clk 0:00:02]} 51. Ka4 {[%clk
0:00:17.5]} 51... Ka7 {[%clk 0:00:02.2]} 52. Kb5 {[%clk 0:00:17.4]} 52... Kb7
{[%clk 0:00:02.7]} 53. a6+ {[%clk 0:00:17.9]} 53... Ka7 {[%clk 0:00:02.9]} 54.
Ka5 {[%clk 0:00:18.5]} 54... Ka8 {[%clk 0:00:03.1]} 55. Kb6 {[%clk 0:00:18.7]}
55... Kb8 {[%clk 0:00:03.4]} 56. a7+ {[%clk 0:00:14.5]} 56... Ka8 {[%clk
0:00:03.5]} 57. Ka6 {[%clk 0:00:14.9]} 57... f5 {[%clk 0:00:03.7]} 58. gxf5
{[%clk 0:00:15.1]} 58... h5 {[%clk 0:00:02.9]} 59. f6 {[%clk 0:00:15.5]} 1-0